[Event "ESP-ch Rapid 2018"]
[Site "Linares"]
[Date "2018.08.19"]
[Round "9"]
[White "Santos Latasa, Jaime"]
[Black "Ljubojevic, Ljubomir"]
[Result "1-0"]
[ECO "A34"]
[WhiteElo "2582"]
[BlackElo "2571"]
[Annotator "ChessBase"]
[PlyCount "59"]
[EventDate "2018.08.19"]
[EventType "team-tourn"]
[EventCountry "ESP"]
[SourceTitle "playchess.com"]
[Source "ChessBase"]
[SourceQuality "1"]
[TimeControl "900+5"]

1. Nf3 {[%emt 0:00:00]} c5 {[%emt 0:00:00]} 2. c4 {[%emt 0:00:00]} Nf6 {[%emt 0:00:00]} 3. Nc3 {[%emt 0:00:02]} d5 {[%emt 0:00:09]} 4. cxd5 {[%emt 0:00:02]} Nxd5 {[%emt 0:00:01]} 5. e3 {[%emt 0:00:01]} Nb4 {[%emt 0:00:58]} 6. Bc4 {[%emt 0:00:16]} Bf5 {[%emt 0:00:48]} 7. e4 {[%emt 0:00:29]} Bg6 {[%emt 0:00:27]} 8. h4 {[%emt 0:00:26]} Nd3+ {[%emt 0:01:48]} 9. Bxd3 {[%emt 0:00:40]} Qxd3 {[%emt 0:00:02]} 10. Qa4+ {[%emt 0:00:02]} Nd7 {[%emt 0:00:33]} 11. Ne5 {[%emt 0:00:31]} b5 {[%emt 0:00:23]} 12. Nxd3 {[%emt 0:00:09]} bxa4 {[%emt 0:00:01]} 13. h5 {[%emt 0:00:01]} Bxe4 {[%emt 0:00:10]} 14. Nxe4 {[%emt 0:00:03]} e5 {[%emt 0:00:01]} 15. b3 {[%emt 0:00:20]} f5 {[%emt 0:00:03]} 16. Nc3 {[%emt 0:00:02]} axb3 {[%emt 0:00:17]} 17. axb3 {[%emt 0:00:02]} Rb8 {[%emt 0:00:29]} 18. Rxa7 {[%emt 0:00:16]} Rxb3 {[%emt 0:00:02]} 19. Ra8+ {[%emt 0:00:04]} Kf7 {[%emt 0:00:05]} 20. O-O {[%emt 0:00:13]} Rg8 {[%emt 0:00:20]} 21. Ra7 {[%emt 0:00:42]} Ke6 {[%emt 0:00:11]} 22. Re1 {[%emt 0:00:14]} e4 {[%emt 0:01:45]} 23. Nf4+ {[%emt 0:00:39]} Kd6 {[%emt 0:00:27]} 24. f3 {[%emt 0:00:25]} g5 {[%emt 0:00:41]} 25. hxg6 {[%emt 0:00:05]} hxg6 {[%emt 0:00:23]} 26. fxe4 {[%emt 0:00:02]} Kc6 {[%emt 0:01:47]} 27. exf5 {[%emt 0:00:22]} gxf5 {[%emt 0:00:08]} 28. Re6+ {[%emt 0:00:05]} Bd6 {[%emt 0:00:06]} 29. Nfd5 {[%emt 0:00:03]} Rd8 {[%emt 0:00:09]} 30. Rc7# 1-0

[Event "ESP-ch Rapid 2018"]
[Site "Linares"]
[Date "2018.08.19"]
[Round "9"]
[White "Ibarra Jerez, Jose Carlos"]
[Black "Ladron De Guevara Pinto, Paolo"]
[Result "1-0"]
[ECO "B06"]
[WhiteElo "2570"]
[BlackElo "2424"]
[Annotator "ChessBase"]
[PlyCount "99"]
[EventDate "2018.08.19"]
[EventType "team-tourn"]
[EventCountry "ESP"]
[SourceTitle "playchess.com"]
[Source "ChessBase"]
[SourceQuality "1"]
[TimeControl "900+5"]

1. e4 {[%emt 0:00:00]} g6 {[%emt 0:00:00]} 2. d4 {[%emt 0:00:01]} Bg7 {[%emt 0:00:00]} 3. Nc3 {[%emt 0:00:30]} d5 {[%emt 0:00:05]} 4. exd5 {[%emt 0:00:24]} Nf6 {[%emt 0:00:05]} 5. Bc4 {[%emt 0:00:12]} O-O {[%emt 0:00:05]} 6. Nf3 {[%emt 0:00:07]} a6 {[%emt 0:00:10]} 7. a4 {[%emt 0:00:09]} b6 {[%emt 0:01:59]} 8. Bg5 {[%emt 0:00:14]} Bb7 {[%emt 0:00:45]} 9. Bxf6 {[%emt 0:00:02]} exf6 {[%emt 0:01:00]} 10. O-O {[%emt 0:00:06]} Nd7 {[%emt 0:00:02]} 11. Re1 {[%emt 0:00:14]} f5 {[%emt 0:00:12]} 12. d6 {[%emt 0:00:53]} cxd6 {[%emt 0:00:26]} 13. Bd5 {[%emt 0:00:08]} Qc7 {[%emt 0:01:42]} 14. Qd3 {[%emt 0:01:45]} Nf6 {[%emt 0:01:50]} 15. Bxb7 {[%emt 0:00:03]} Qxb7 {[%emt 0:00:02]} 16. Re2 {[%emt 0:00:12]} Rfe8 {[%emt 0:00:14]} 17. Rae1 {[%emt 0:00:03]} Rxe2 {[%emt 0:00:13]} 18. Rxe2 {[%emt 0:00:04]} Re8 {[%emt 0:00:16]} 19. Rxe8+ {[%emt 0:00:29]} Nxe8 {[%emt 0:00:04]} 20. Nd2 {[%emt 0:01:28]} Bf6 {[%emt 0:01:03]} 21. b3 {[%emt 0:00:20]} Kg7 {[%emt 0:00:30]} 22. Ne2 {[%emt 0:00:58]} Nc7 {[%emt 0:00:28]} 23. c4 {[%emt 0:00:32]} Qc6 {[%emt 0:00:16]} 24. h3 {[%emt 0:00:51]} h5 {[%emt 0:00:51]} 25. Nc3 {[%emt 0:01:08]} Qe8 {[%emt 0:00:44]} 26. Nf3 {[%emt 0:00:08]} Qe6 {[%emt 0:00:59]} 27. b4 {[%emt 0:00:26]} Qe8 {[%emt 0:00:48]} 28. Kf1 {[%emt 0:00:13]} Ne6 {[%emt 0:00:36]} 29. g3 {[%emt 0:00:50]} Nc7 {[%emt 0:00:06]} 30. h4 {[%emt 0:01:04]} Qd7 {[%emt 0:00:35]} 31. Qe3 {[%emt 0:00:39]} Qe6 {[%emt 0:00:35]} 32. Qd3 {[%emt 0:00:13]} Qd7 {[%emt 0:00:09]} 33. Ke2 {[%emt 0:00:05]} Kf8 {[%emt 0:00:14]} 34. Qd2 {[%emt 0:00:29]} Ke8 {[%emt 0:00:12]} 35. Kd3 {[%emt 0:00:06]} Kd8 {[%emt 0:00:02]} 36. Kc2 {[%emt 0:00:35]} Kc8 {[%emt 0:00:04]} 37. Kb3 {[%emt 0:00:05]} Qe6 {[%emt 0:00:17]} 38. Qd3 {[%emt 0:00:24]} Kb7 {[%emt 0:00:07]} 39. Ng5 {[%emt 0:00:17]} Bxg5 {[%emt 0:00:15]} 40. hxg5 {[%emt 0:00:01]} Qe7 {[%emt 0:00:02]} 41. Qf3+ {[%emt 0:00:17]} Ka7 {[%emt 0:00:06]} 42. Qc6 {[%emt 0:00:04]} Ne6 {[%emt 0:00:13]} 43. Qd5 {[%emt 0:01:08]} Qxg5 {[%emt 0:00:07]} 44. Qxd6 {[%emt 0:00:16]} Qd2 {[%emt 0:00:05]} 45. Qe7+ {[%emt 0:00:07]} Kb8 {[%emt 0:00:04]} 46. Qe8+ {[%emt 0:00:01]} Kb7 {[%emt 0:00:04]} 47. Qxf7+ {[%emt 0:00:02]} Nc7 {[%emt 0:00:01]} 48. d5 {[%emt 0:00:12]} Qd3 {[%emt 0:00:11]} 49. c5 {[%emt 0:00:05]} bxc5 {[%emt 0:00:05]} 50. bxc5 {[%emt 0:00:01]} 1-0

[Event "ESP-ch Rapid 2018"]
[Site "Linares"]
[Date "2018.08.19"]
[Round "9"]
[White "Moreno Trujillo, Alejandro"]
[Black "Sande Edreira, Jose Antonio"]
[Result "1-0"]
[ECO "E90"]
[WhiteElo "2497"]
[BlackElo "2230"]
[Annotator "ChessBase"]
[PlyCount "83"]
[EventDate "2018.08.19"]
[EventType "team-tourn"]
[EventCountry "ESP"]
[SourceTitle "playchess.com"]
[Source "ChessBase"]
[SourceQuality "1"]
[TimeControl "900+5"]

1. d4 {[%emt 0:00:00]} Nf6 {[%emt 0:00:00]} 2. c4 {[%emt 0:00:00]} g6 {[%emt 0:00:00]} 3. Nc3 {[%emt 0:00:00]} Bg7 {[%emt 0:00:00]} 4. e4 {[%emt 0:00:01]} d6 {[%emt 0:00:00]} 5. Nf3 {[%emt 0:00:02]} O-O {[%emt 0:00:01]} 6. h3 {[%emt 0:00:01]} c5 {[%emt 0:00:14]} 7. d5 {[%emt 0:00:04]} e6 {[%emt 0:00:02]} 8. Bd3 {[%emt 0:00:03]} Re8 {[%emt 0:00:08]} 9. O-O {[%emt 0:00:14]} Na6 {[%emt 0:00:02]} 10. a3 {[%emt 0:00:12]} exd5 {[%emt 0:00:42]} 11. cxd5 {[%emt 0:00:16]} c4 {[%emt 0:00:07]} 12. Bc2 {[%emt 0:00:12]} Nc5 {[%emt 0:00:02]} 13. Re1 {[%emt 0:00:03]} Bd7 {[%emt 0:00:25]} 14. Bf4 {[%emt 0:00:08]} Qb6 {[%emt 0:00:36]} 15. Rb1 {[%emt 0:00:16]} Rac8 {[%emt 0:00:18]} 16. e5 {[%emt 0:00:41]} Nh5 {[%emt 0:00:17]} 17. Bh2 {[%emt 0:00:03]} dxe5 {[%emt 0:00:39]} 18. Nxe5 {[%emt 0:00:10]} Qf6 {[%emt 0:01:55]} 19. Nxd7 {[%emt 0:00:43]} Nxd7 {[%emt 0:00:02]} 20. Ne4 {[%emt 0:00:45]} Qh4 {[%emt 0:00:57]} 21. Nd6 {[%emt 0:04:48]} Rxe1+ {[%emt 0:00:03]} 22. Qxe1 {[%emt 0:00:01]} Rf8 {[%emt 0:00:01]} 23. Qe4 {[%emt 0:00:46]} Qxe4 {[%emt 0:00:44]} 24. Bxe4 {[%emt 0:00:02]} Nhf6 {[%emt 0:00:08]} 25. Bf3 {[%emt 0:00:25]} Nb6 {[%emt 0:00:06]} 26. Rd1 {[%emt 0:00:22]} Na4 {[%emt 0:01:00]} 27. Nxc4 {[%emt 0:01:03]} b5 {[%emt 0:00:01]} 28. Ne3 {[%emt 0:00:12]} Nxb2 {[%emt 0:00:11]} 29. Rc1 {[%emt 0:00:08]} a5 {[%emt 0:01:27]} 30. Rc5 {[%emt 0:00:36]} b4 {[%emt 0:01:28]} 31. Rxa5 {[%emt 0:00:03]} bxa3 {[%emt 0:00:07]} 32. Rxa3 {[%emt 0:00:04]} Nd7 {[%emt 0:00:08]} 33. Bd6 {[%emt 0:01:12]} Rc8 {[%emt 0:00:07]} 34. g3 {[%emt 0:00:19]} Ne5 {[%emt 0:00:28]} 35. Be2 {[%emt 0:00:22]} h5 {[%emt 0:00:27]} 36. Be7 {[%emt 0:00:35]} Bf8 {[%emt 0:02:24]} 37. d6 {[%emt 0:00:21]} Rb8 {[%emt 0:01:31]} 38. f4 {[%emt 0:01:18]} Nc6 {[%emt 0:00:17]} 39. Nd5 {[%emt 0:00:02]} Bxe7 {[%emt 0:00:34]} 40. Nxe7+ {[%emt 0:00:13]} Nxe7 {[%emt 0:00:10]} 41. dxe7 {[%emt 0:00:01]} f6 {[%emt 0:00:18]} 42. Rb3 {[%emt 0:00:09]} 1-0

[Event "ESP-ch Rapid 2018"]
[Site "Linares"]
[Date "2018.08.19"]
[Round "9"]
[White "Espinosa Aranda, Angel"]
[Black "Lianes Garcia, Marcos"]
[Result "1/2-1/2"]
[ECO "C47"]
[WhiteElo "2451"]
[BlackElo "2340"]
[Annotator "ChessBase"]
[PlyCount "288"]
[EventDate "2018.08.19"]
[EventType "team-tourn"]
[EventCountry "ESP"]
[SourceTitle "playchess.com"]
[Source "ChessBase"]
[SourceQuality "1"]
[TimeControl "900+5"]

1. e4 {[%emt 0:00:00]} e5 {[%emt 0:00:00]} 2. Nc3 {[%emt 0:00:00]} Nf6 {[%emt 0:00:16]} 3. Nf3 {[%emt 0:00:24]} Nc6 {[%emt 0:00:06]} 4. Be2 {[%emt 0:00:01]} d5 {[%emt 0:00:51]} 5. exd5 {[%emt 0:00:01]} Nxd5 {[%emt 0:00:02]} 6. O-O {[%emt 0:00:02]} Be7 {[%emt 0:00:03]} 7. d4 {[%emt 0:00:02]} exd4 {[%emt 0:00:37]} 8. Nxd4 {[%emt 0:00:04]} Nxc3 {[%emt 0:00:22]} 9. bxc3 {[%emt 0:00:01]} O-O {[%emt 0:00:15]} 10. Rb1 {[%emt 0:00:01]} Bf6 {[%emt 0:02:14]} 11. Ba3 {[%emt 0:00:46]} Re8 {[%emt 0:00:05]} 12. Nxc6 {[%emt 0:00:32]} bxc6 {[%emt 0:00:01]} 13. Bf3 {[%emt 0:00:02]} Ba6 {[%emt 0:01:24]} 14. Qxd8 {[%emt 0:01:31]} Raxd8 {[%emt 0:00:05]} 15. Rfd1 {[%emt 0:00:19]} Rxd1+ {[%emt 0:00:33]} 16. Rxd1 {[%emt 0:00:01]} Bxc3 {[%emt 0:00:13]} 17. Bxc6 {[%emt 0:00:16]} Re1+ {[%emt 0:00:01]} 18. Rxe1 {[%emt 0:00:01]} Bxe1 {[%emt 0:00:01]} 19. Bc5 {[%emt 0:00:01]} Bc4 {[%emt 0:00:03]} 20. a4 {[%emt 0:00:13]} a6 {[%emt 0:00:40]} 21. g3 {[%emt 0:01:33]} f5 {[%emt 0:01:12]} 22. Be8 {[%emt 0:00:37]} g6 {[%emt 0:00:28]} 23. Kg2 {[%emt 0:00:09]} Kg7 {[%emt 0:02:19]} 24. Kf3 {[%emt 0:00:26]} Kf6 {[%emt 0:00:29]} 25. Ke3 {[%emt 0:00:04]} Ke6 {[%emt 0:00:16]} 26. Bd4 {[%emt 0:00:32]} Bb4 {[%emt 0:00:06]} 27. h4 {[%emt 0:00:10]} Bf8 {[%emt 0:00:35]} 28. Kd2 {[%emt 0:01:47]} Bb4+ {[%emt 0:00:02]} 29. c3 {[%emt 0:00:23]} Bf8 {[%emt 0:00:05]} 30. a5 {[%emt 0:00:08]} c5 {[%emt 0:00:23]} 31. Be3 {[%emt 0:00:01]} Bd6 {[%emt 0:00:01]} 32. Bc6 {[%emt 0:00:40]} Bd5 {[%emt 0:00:15]} 33. Ba4 {[%emt 0:00:01]} Bc4 {[%emt 0:00:04]} 34. Bd1 {[%emt 0:00:11]} Be7 {[%emt 0:00:27]} 35. Bf3 {[%emt 0:00:36]} Bd6 {[%emt 0:00:10]} 36. h5 {[%emt 0:00:02]} Bd5 {[%emt 0:00:38]} 37. Be2 {[%emt 0:00:09]} c4 {[%emt 0:00:02]} 38. hxg6 {[%emt 0:00:07]} hxg6 {[%emt 0:00:01]} 39. Bb6 {[%emt 0:00:03]} Be5 {[%emt 0:00:18]} 40. Bd1 {[%emt 0:00:14]} Bc6 {[%emt 0:00:28]} 41. Bc5 {[%emt 0:00:57]} Bf6 {[%emt 0:00:20]} 42. Be2 {[%emt 0:00:37]} Bd5 {[%emt 0:00:06]} 43. Bb4 {[%emt 0:00:25]} Be5 {[%emt 0:00:05]} 44. Bd1 {[%emt 0:00:25]} Bc6 {[%emt 0:00:03]} 45. Ke3 {[%emt 0:00:09]} g5 {[%emt 0:00:38]} 46. f4 {[%emt 0:00:01]} gxf4+ {[%emt 0:00:07]} 47. gxf4 {[%emt 0:00:00]} Bf6 {[%emt 0:00:13]} 48. Bh5 {[%emt 0:00:02]} Bg7 {[%emt 0:00:08]} 49. Bg6 {[%emt 0:00:02]} Bf6 {[%emt 0:00:06]} 50. Bh7 {[%emt 0:00:01]} Bb5 {[%emt 0:00:16]} 51. Bg8+ {[%emt 0:00:10]} Kd7 {[%emt 0:00:04]} 52. Bd5 {[%emt 0:00:01]} Bg7 {[%emt 0:00:05]} 53. Bg2 {[%emt 0:00:45]} Bf6 {[%emt 0:00:08]} 54. Kd2 {[%emt 0:00:04]} Bd8 {[%emt 0:00:11]} 55. Bf3 {[%emt 0:00:24]} Bf6 {[%emt 0:00:04]} 56. Bc5 {[%emt 0:00:06]} Bd8 {[%emt 0:00:04]} 57. Bb6 {[%emt 0:00:04]} Bf6 {[%emt 0:00:04]} 58. Bd5 {[%emt 0:00:13]} Kd6 {[%emt 0:00:18]} 59. Bb7 {[%emt 0:00:02]} Kd7 {[%emt 0:00:01]} 60. Bd5 {[%emt 0:00:08]} Kd6 {[%emt 0:00:01]} 61. Bg8 {[%emt 0:00:01]} Kd7 {[%emt 0:00:05]} 62. Kc2 {[%emt 0:00:05]} Be7 {[%emt 0:00:07]} 63. Kd2 {[%emt 0:00:26]} Bf6 {[%emt 0:00:05]} 64. Bf7 {[%emt 0:00:13]} Ke7 {[%emt 0:00:08]} 65. Bg6 {[%emt 0:00:05]} Ke6 {[%emt 0:00:03]} 66. Bh5 {[%emt 0:00:01]} Bc6 {[%emt 0:00:17]} 67. Be2 {[%emt 0:00:06]} Bb5 {[%emt 0:00:01]} 68. Bf3 {[%emt 0:00:00]} Kd7 {[%emt 0:00:03]} 69. Bc5 {[%emt 0:00:05]} Bd8 {[%emt 0:00:10]} 70. Bb4 {[%emt 0:00:03]} Bf6 {[%emt 0:00:05]} 71. Bd5 {[%emt 0:00:07]} Bg7 {[%emt 0:00:07]} 72. Ke3 {[%emt 0:00:03]} Bf6 {[%emt 0:00:02]} 73. Kf3 {[%emt 0:00:01]} Bd8 {[%emt 0:00:04]} 74. Kf2 {[%emt 0:00:15]} Bh4+ {[%emt 0:00:03]} 75. Ke2 {[%emt 0:00:02]} Bd8 {[%emt 0:00:03]} 76. Kf3 {[%emt 0:00:02]} Bh4 {[%emt 0:00:04]} 77. Bf7 {[%emt 0:00:16]} Bd8 {[%emt 0:00:04]} 78. Bg6 {[%emt 0:00:09]} Ke6 {[%emt 0:00:02]} 79. Bh7 {[%emt 0:00:02]} Bh4 {[%emt 0:00:09]} 80. Ke3 {[%emt 0:00:09]} Bf6 {[%emt 0:00:01]} 81. Bg8+ {[%emt 0:00:31]} Kd7 {[%emt 0:00:02]} 82. Bd5 {[%emt 0:00:06]} Bg7 {[%emt 0:00:05]} 83. Bg2 {[%emt 0:00:25]} Bf6 {[%emt 0:00:08]} 84. Kd2 {[%emt 0:00:01]} Bd8 {[%emt 0:00:06]} 85. Ke2 {[%emt 0:00:17]} Bh4 {[%emt 0:00:08]} 86. Bd5 {[%emt 0:00:11]} Bd8 {[%emt 0:00:03]} 87. Ke3 {[%emt 0:00:07]} Bf6 {[%emt 0:00:01]} 88. Kd2 {[%emt 0:00:11]} Bd8 {[%emt 0:00:04]} 89. Bf3 {[%emt 0:00:06]} Bh4 {[%emt 0:00:02]} 90. Bc5 {[%emt 0:00:01]} Bd8 {[%emt 0:00:11]} 91. Bb6 {[%emt 0:00:04]} Bf6 {[%emt 0:00:04]} 92. Kc2 {[%emt 0:00:09]} Be7 {[%emt 0:00:05]} 93. Kd2 {[%emt 0:00:07]} Bf6 {[%emt 0:00:01]} 94. Bh5 {[%emt 0:00:09]} Ke6 {[%emt 0:00:08]} 95. Bg6 {[%emt 0:00:12]} Bg7 {[%emt 0:00:02]} 96. Bd4 {[%emt 0:00:05]} Bf8 {[%emt 0:00:03]} 97. Be5 {[%emt 0:00:04]} Bc5 {[%emt 0:00:02]} 98. Bc7 {[%emt 0:00:11]} Be7 {[%emt 0:00:06]} 99. Bh7 {[%emt 0:00:05]} Bf6 {[%emt 0:00:10]} 100. Bb6 {[%emt 0:00:03]} Be7 {[%emt 0:00:07]} 101. Bg8+ {[%emt 0:00:04]} Kd7 {[%emt 0:00:01]} 102. Ke3 {[%emt 0:00:01]} Bf6 {[%emt 0:00:05]} 103. Kd2 {[%emt 0:00:05]} Be7 {[%emt 0:00:10]} 104. Bd5 {[%emt 0:00:06]} Bf6 {[%emt 0:00:02]} 105. Kc2 {[%emt 0:00:06]} Be7 {[%emt 0:00:04]} 106. Kb2 {[%emt 0:00:18]} Bd6 {[%emt 0:00:06]} 107. Kc2 {[%emt 0:00:23]} Bxf4 {[%emt 0:00:04]} 108. Kd1 {[%emt 0:00:01]} Be5 {[%emt 0:00:09]} 109. Kd2 {[%emt 0:00:01]} Ke7 {[%emt 0:00:09]} 110. Bf3 {[%emt 0:00:14]} Kf6 {[%emt 0:00:05]} 111. Bd8+ {[%emt 0:00:02]} Ke6 {[%emt 0:00:06]} 112. Bb6 {[%emt 0:00:04]} Ke7 {[%emt 0:00:09]} 113. Bg2 {[%emt 0:00:05]} Bf4+ {[%emt 0:00:11]} 114. Ke2 {[%emt 0:00:05]} Ke6 {[%emt 0:00:00]} 115. Bb7 {[%emt 0:00:08]} Be5 {[%emt 0:00:04]} 116. Kd2 {[%emt 0:00:11]} Kf6 {[%emt 0:00:01]} 117. Be3 {[%emt 0:00:06]} f4 {[%emt 0:00:06]} 118. Bf2 {[%emt 0:00:00]} Kg5 {[%emt 0:00:01]} 119. Bf3 {[%emt 0:00:02]} Bc7 {[%emt 0:00:06]} 120. Bb6 {[%emt 0:00:03]} Bd6 {[%emt 0:00:06]} 121. Bd8+ {[%emt 0:00:05]} Kf5 {[%emt 0:00:01]} 122. Bb6 {[%emt 0:00:00]} Be5 {[%emt 0:00:10]} 123. Bd8 {[%emt 0:00:04]} Bg7 {[%emt 0:00:09]} 124. Bb6 {[%emt 0:00:05]} Bf6 {[%emt 0:00:02]} 125. Bc7 {[%emt 0:00:02]} Bh4 {[%emt 0:00:05]} 126. Bb6 {[%emt 0:00:05]} Bg3 {[%emt 0:00:10]} 127. Bc7 {[%emt 0:00:01]} Bf2 {[%emt 0:00:02]} 128. Bb6 {[%emt 0:00:04]} Bh4 {[%emt 0:00:06]} 129. Bc7 {[%emt 0:00:01]} Bf6 {[%emt 0:00:03]} 130. Bb6 {[%emt 0:00:06]} Be5 {[%emt 0:00:06]} 131. Bd8 {[%emt 0:00:04]} Ke6 {[%emt 0:00:06]} 132. Bb6 {[%emt 0:00:06]} Kd6 {[%emt 0:00:03]} 133. Ba7 {[%emt 0:00:02]} Kd7 {[%emt 0:00:07]} 134. Bb7 {[%emt 0:00:07]} Bc7 {[%emt 0:00:16]} 135. Bb6 {[%emt 0:00:05]} Bxb6 {[%emt 0:00:10]} 136. axb6 {[%emt 0:00:01]} a5 {[%emt 0:00:03]} 137. Bf3 {[%emt 0:00:02]} Kc8 {[%emt 0:00:07]} 138. Kc2 {[%emt 0:00:09]} Kb8 {[%emt 0:00:02]} 139. Kb2 {[%emt 0:00:01]} Ba6 {[%emt 0:00:14]} 140. Bd5 {[%emt 0:00:01]} Bb5 {[%emt 0:00:02]} 141. Ka3 {[%emt 0:00:03]} Kc8 {[%emt 0:00:02]} 142. Bf3 {[%emt 0:00:05]} Kb8 {[%emt 0:00:01]} 143. Bd5 {[%emt 0:00:01]} Kc8 {[%emt 0:00:07]} 144. Bf3 {[%emt 0:00:01]} Kb8 {[%emt 0:00:00]} 1/2-1/2

[Event "ESP-ch Rapid 2018"]
[Site "Linares"]
[Date "2018.08.19"]
[Round "9"]
[White "Huerga Leache, Mikel"]
[Black "Buendia Pinar, Alvaro"]
[Result "0-1"]
[ECO "A14"]
[WhiteElo "2451"]
[BlackElo "2278"]
[Annotator "ChessBase"]
[PlyCount "44"]
[EventDate "2018.08.19"]
[EventType "team-tourn"]
[EventCountry "ESP"]
[SourceTitle "playchess.com"]
[Source "ChessBase"]
[SourceQuality "1"]
[TimeControl "900+5"]

1. Nf3 {[%emt 0:00:00]} Nf6 {[%emt 0:00:00]} 2. c4 {[%emt 0:00:00]} e6 {[%emt 0:00:03]} 3. g3 {[%emt 0:00:00]} d5 {[%emt 0:00:10]} 4. Bg2 {[%emt 0:00:01]} Be7 {[%emt 0:00:07]} 5. O-O {[%emt 0:00:05]} O-O {[%emt 0:00:03]} 6. b3 {[%emt 0:00:17]} d4 {[%emt 0:00:38]} 7. Bb2 {[%emt 0:00:03]} c5 {[%emt 0:00:03]} 8. e3 {[%emt 0:00:02]} Nc6 {[%emt 0:00:06]} 9. exd4 {[%emt 0:00:01]} cxd4 {[%emt 0:00:01]} 10. Re1 {[%emt 0:00:02]} Re8 {[%emt 0:00:42]} 11. Ne5 {[%emt 0:00:23]} Nxe5 {[%emt 0:00:20]} 12. Rxe5 {[%emt 0:00:02]} Bd6 {[%emt 0:00:11]} 13. Re1 {[%emt 0:00:02]} e5 {[%emt 0:00:21]} 14. d3 {[%emt 0:00:03]} Bb4 {[%emt 0:01:29]} 15. Nd2 {[%emt 0:00:03]} Bg4 {[%emt 0:00:37]} 16. Qc2 {[%emt 0:00:15]} Qa5 {[%emt 0:00:16]} 17. Bc1 {[%emt 0:00:01]} Bc3 {[%emt 0:01:41]} 18. Rb1 {[%emt 0:00:02]} e4 {[%emt 0:00:25]} 19. Bxe4 {[%emt 0:01:49]} Nxe4 {[%emt 0:00:06]} 20. Rxe4 {[%emt 0:00:01]} f5 {[%emt 0:00:01]} 21. Rxe8+ {[%emt 0:00:11]} Rxe8 {[%emt 0:00:02]} 22. Nf1 {[%emt 0:00:01]} Re2 {[%emt 0:00:10]} 0-1

[Event "ESP-ch Rapid 2018"]
[Site "Linares"]
[Date "2018.08.19"]
[Round "9"]
[White "Cruz Lledo, Pablo"]
[Black "Garcia Cuenca, Victor"]
[Result "1-0"]
[ECO "A57"]
[WhiteElo "2432"]
[BlackElo "2351"]
[Annotator "NA"]
[PlyCount "77"]
[EventDate "2018.08.19"]
[EventType "team-tourn"]
[EventCountry "ESP"]
[SourceTitle "playchess.com"]
[Source "ChessBase"]
[SourceQuality "1"]
[TimeControl "900+5"]

1. d4 {[%emt 0:00:00]} Nf6 {[%emt 0:00:00]} 2. c4 {[%emt 0:00:00]} c5 {[%emt 0:00:00]} 3. d5 {[%emt 0:00:00]} b5 {[%emt 0:00:00]} 4. Nf3 {[%emt 0:00:03]} g6 {[%emt 0:00:05]} 5. cxb5 {[%emt 0:00:08]} a6 {[%emt 0:00:01]} 6. b6 {[%emt 0:00:01]} Bg7 {[%emt 0:00:08]} 7. Nc3 {[%emt 0:00:02]} d6 {[%emt 0:00:16]} 8. e4 {[%emt 0:00:02]} Nbd7 {[%emt 0:00:02]} 9. Be2 {[%emt 0:00:05]} O-O {[%emt 0:00:06]} 10. a4 {[%emt 0:00:06]} Qxb6 {[%emt 0:00:06]} 11. O-O {[%emt 0:00:05]} a5 {[%emt 0:01:00]} 12. Bb5 {[%emt 0:00:17]} Ne8 {[%emt 0:00:36]} 13. Nd2 {[%emt 0:00:05]} Nc7 {[%emt 0:00:02]} 14. Nc4 {[%emt 0:00:22]} Qb8 {[%emt 0:00:02]} 15. Bc6 {[%emt 0:00:05]} Ba6 {[%emt 0:00:23]} 16. Nb5 {[%emt 0:00:07]} Nxb5 {[%emt 0:00:06]} 17. axb5 {[%emt 0:00:20]} Bxb5 {[%emt 0:00:01]} 18. Nxa5 {[%emt 0:01:16]} Bxf1 {[%emt 0:03:02]} 19. Bxa8 {[%emt 0:00:02]} Qxa8 {[%emt 0:00:03]} 20. Qxf1 {[%emt 0:00:11]} Qa7 {[%emt 0:00:10]} 21. Ra3 {[%emt 0:00:10]} Ne5 {[%emt 0:00:50]} 22. Nc6 {[%emt 0:00:37]} Qd7 {[%emt 0:02:01]} 23. Ra7 {[%emt 0:00:12]} Qg4 {[%emt 0:00:03]} 24. f3 {[%emt 0:00:51]} Qh4 {[%emt 0:00:19]} 25. Nxe7+ {[%emt 0:00:05]} Kh8 {[%emt 0:00:02]} 26. Nc6 {[%emt 0:00:18]} f5 {[%emt 0:00:40]} 27. exf5 {[%emt 0:00:44]} Rxf5 {[%emt 0:00:21]} 28. Ra8+ {[%emt 0:00:10]} Rf8 {[%emt 0:00:01]} 29. Rxf8+ {[%emt 0:00:13]} Bxf8 {[%emt 0:00:01]} 30. b3 {[%emt 0:01:53]} Bg7 {[%emt 0:00:09]} 31. Qe2 {[%emt 0:01:21]} h6 {[%emt 0:02:26]} 32. Bb2 {[%emt 0:00:12]} Nf7 33. g3 {[%emt 0:00:33]} Qg5 {[%emt 0:01:30]} 34. Qe8+ {[%emt 0:01:52]} Kh7 {[%emt 0:00:03]} 35. Qxf7 {[%emt 0:00:19]} Qe3+ {[%emt 0:00:01]} 36. Kg2 {[%emt 0:00:20]} Qe2+ {[%emt 0:00:07]} 37. Kh3 {[%emt 0:00:15]} Qxb2 {[%emt 0:00:01]} 38. Ne7 {[%emt 0:00:11]} Qb1 {[%emt 0:00:09]} 39. Qg8# {[%emt 0:00:03]} 1-0

[Event "ESP-ch Rapid 2018"]
[Site "Linares"]
[Date "2018.08.19"]
[Round "9"]
[White "Llobell Cortell, Enrique"]
[Black "Santos Ruiz, Miguel"]
[Result "0-1"]
[ECO "B54"]
[WhiteElo "2411"]
[BlackElo "2517"]
[Annotator "ChessBase"]
[PlyCount "48"]
[EventDate "2018.08.19"]
[EventType "team-tourn"]
[EventCountry "ESP"]
[SourceTitle "playchess.com"]
[Source "ChessBase"]
[SourceQuality "1"]
[TimeControl "900+5"]

1. e4 {[%emt 0:00:00]} c5 {[%emt 0:00:00]} 2. Nf3 {[%emt 0:00:14]} d6 {[%emt 0:00:00]} 3. d4 {[%emt 0:00:11]} cxd4 {[%emt 0:00:00]} 4. Nxd4 {[%emt 0:00:01]} Nf6 {[%emt 0:00:00]} 5. f3 {[%emt 0:00:00]} Nc6 {[%emt 0:00:05]} 6. Nc3 {[%emt 0:00:02]} e6 {[%emt 0:00:21]} 7. Be3 {[%emt 0:00:06]} h5 {[%emt 0:00:12]} 8. Qd2 {[%emt 0:00:22]} a6 {[%emt 0:00:04]} 9. O-O-O {[%emt 0:00:58]} Be7 {[%emt 0:00:02]} 10. Qf2 {[%emt 0:03:01]} Qc7 {[%emt 0:00:53]} 11. Kb1 {[%emt 0:00:24]} b5 {[%emt 0:00:17]} 12. Bxb5 {[%emt 0:05:27]} axb5 {[%emt 0:00:08]} 13. Ndxb5 {[%emt 0:00:02]} Qb8 {[%emt 0:01:06]} 14. Bb6 {[%emt 0:00:10]} O-O {[%emt 0:00:04]} 15. Nc7 {[%emt 0:00:14]} Ra7 {[%emt 0:00:03]} 16. Bxa7 {[%emt 0:03:03]} Nxa7 {[%emt 0:00:02]} 17. N7d5 {[%emt 0:00:43]} exd5 {[%emt 0:00:05]} 18. exd5 {[%emt 0:00:01]} Nb5 {[%emt 0:00:32]} 19. Nxb5 {[%emt 0:00:06]} Qxb5 {[%emt 0:00:01]} 20. Qd4 {[%emt 0:00:24]} Bf5 {[%emt 0:00:52]} 21. Rhe1 {[%emt 0:00:05]} Rc8 {[%emt 0:00:22]} 22. Rd2 {[%emt 0:00:18]} Bd8 {[%emt 0:00:18]} 23. Qf4 {[%emt 0:00:11]} Rb8 {[%emt 0:00:12]} 24. b3 {[%emt 0:00:11]} Ba5 {[%emt 0:00:02]} 0-1